Cogmind - Beta 15 @@@ ROGUE MODE // 2025.05.08 @ 14:07:40 Player: Cholfo Result: Destroyed by Y-45 Defender with Beam Rifle Performance ------------- Evolutions (1) 500 Regions Visited (3) 600 Robots Destroyed (50) 250 Value Destroyed (1215) 1215 Prototype IDs (7) 140 Alien Tech Used (0) 0 Bonus (0) 0 TOTAL SCORE: 2705 Bonus ------- None Cogmind --------- Core Integrity 0/400 Matter 300/300 Energy 100/100 System Corruption 0% Temperature Cool (9) Movement Core (400) Ox7 Location -9/Storage Parts ------- > --- POWER (1) -------- (None) > --- PROPULSION (4) --- (None) > --- UTILITY (2) ------ Large Storage Unit > --- WEAPON (2) ------- Maul > --- INVENTORY (15) --- Improved Heat Sink Large Storage Unit High-capacity Matter Pod (200) Visual Processing Unit Signal Interpreter Hardlight Generator Beam Rifle Assault Rifle Autogun Autogun EMP Blaster EMP Blaster Grenade Launcher Peak State ------------ > --- POWER ------------ Improved Ion Engine > --- PROPULSION ------- Carbon-fiber Leg Carbon-fiber Leg Carbon-fiber Leg Carbon-fiber Leg > --- UTILITY ---------- Improved Heat Sink Large Storage Unit > --- WEAPON ----------- Beam Rifle Improved Medium Laser > --- INVENTORY -------- Light Treads Light Treads Large Storage Unit High-capacity Matter Pod Visual Processing Unit Signal Interpreter Terrain Scanner Light Assault Rifle Heavy Assault Rifle Autogun Autogun EMP Blaster EMP Blaster Grenade Launcher [Rating: 25] Favorites ----------- Power Light Ion Engine Engine Light Ion Engine Propulsion Aluminum Leg Treads Light Treads Leg Aluminum Leg Hover Unit Backup Propulsion I Flight Unit Flight Unit Utility Large Storage Unit Device Sensor Array Storage Large Storage Unit Processor Melee Analysis Suite Weapon Assault Rifle Energy Gun Improved Medium Laser Energy Cannon Beam Cannon Ballistic Gun Assault Rifle Special Weapon Plasma Cutter Impact Weapon Maul Build | -11 -10 -9 -9 ------- Run | Yrd Mat Mat Sto Slots Evolved 2 | . . 2 . Power . | . . . . Propulsion 2 | . . 2 . Utility . | . . . . Weapon . | . . . . Parts Attached 45 | 6 17 22 . Power 8 | 1 4 3 . Engine 8 | 1 4 3 . Core . | . . . . Reactor . | . . . . Propulsion 17 | 2 5 10 . Treads 4 | 2 . 2 . Leg 9 | . 5 4 . Wheel . | . . . . Hover . | . . . . Flight 4 | . . 4 . Utility 6 | 1 3 2 . Device 2 | . 1 1 . Storage 3 | 1 2 . . Processor 1 | . . 1 . Hackware . | . . . . Protection . | . . . . Artifact . | . . . . Weapon 14 | 2 5 7 . Energy Gun 4 | 1 2 1 . Energy Cannon 2 | . 1 1 . Ballistic Gun 6 | 1 2 3 . Ballistic Cannon . | . . . . Launcher . | . . . . Special Weapon 1 | . . 1 . Impact Weapon 1 | . . 1 . Slashing Weapon . | . . . . Piercing Weapon . | . . . . Special Melee Weapon . | . . . . Unidentified Prototypes . | . . . . Parts Lost 23 | . 6 14 3 Power 6 | . 3 3 . Propulsion 10 | . 2 7 1 Utility 2 | . . 1 1 Weapon 5 | . 1 3 1 Highest Loss Streak 9 | . 2 9 2 To Critical Strikes 1 | . 1 . . Average Backups 12 | 2 12 11 13 Power . | . . . . Propulsion 2 | 1 3 . . Utility 4 | . 5 5 6 Weapon 4 | 1 3 5 7 Tool/Special . | . . . . Unused Backups 20 | . 10 2 8 Power . | . . . . Propulsion 1 | . 1 . . Utility 10 | . 5 1 4 Weapon 9 | . 4 1 4 Tool/Special . | . . . . Average Slot Usage (%) 90 | . 96 85 47 Engine 10 | . 12 9 . Treads 6 | . 8 2 . Leg 19 | . 18 22 6 Flight 2 | . . 6 . Device 10 | . 12 9 . Storage 13 | . 15 11 11 Energy Gun 5 | . 5 8 . Energy Cannon 3 | . 6 1 . Ballistic Gun 12 | . 16 5 8 Impact Weapon 2 | . . 4 11 Peak Build Rating 25 | 6 11 25 13 Average Rating 11 | 4 8 17 11 On Entrance 7 | . 6 11 11 Naked Turns . | . . . . Heaviest Build 47 | 12 47 34 26 Greatest Support 60 | 40 40 60 15 Greatest Overweight (x) 9 | . 9 7 8 Average Overweight (x) . | . . . 2 Largest Inventory Capacity 15 | 8 15 15 15 Average Capacity 14 | 7 14 15 15 Most Carried 15 | 4 15 15 14 Average Carried 12 | 3 12 11 13 Final Capacity 15 | 8 15 15 15 Final Carried 14 | 4 14 13 13 Class Distribution -------------------- 94% | Mutant 5% | Scavenger-Mutant Dominant Class ---------------- Mutant | -10/Materials Mutant | -9/Materials Mutant | -9/Storage Resources | -11 -10 -9 -9 ----------- Run | Yrd Mat Mat Sto Matter Collected 1368 | 260 702 359 47 Remotely . | . . . . Salvage Created 1570 | . 760 716 94 Parts 90 | . 47 38 5 Haulers Intercepted . | . . . . Recyclers Shooed 1 | . 1 . . Parts Field Recycled . | . . . . Retrieved Matter . | . . . . Parts Self-Destructed . | . . . . Prevented . | . . . . Kills | -11 -10 -9 -9 ------- Run | Yrd Mat Mat Sto Combat Hostiles Destroyed 40 | . 20 18 2 Melee 4 | . . 4 . Guns 28 | . 18 10 . Cannons 2 | . 2 . . Classes Destroyed 9 | . 4 5 . Worker 1 | . 1 . . Builder 3 | . . 2 1 Recycler 2 | . . 1 1 Watcher 4 | . 3 1 . Swarmer 15 | . 6 7 2 Grunt 18 | . 14 4 . Brawler 1 | . . 1 . Duelist 1 | . . 1 . Sentry 5 | . . 5 . Best Kill Streak 5 | . 3 5 2 Combat Bots Only 5 | . 3 5 2 Max Kills in Single Turn 1 | . 1 1 1 Gunslinging . | . . . . Exploded . | . . . . Melee 1 | . . 1 . Uniques/NPCs Destroyed . | . . . . Combat | -11 -10 -9 -9 -------- Run | Yrd Mat Mat Sto Hostile Shots Fired 364 | . 138 192 34 Missed 94 | . 45 41 8 Hits 270 | . 93 151 26 Melee 10 | . . 10 . Projectile 260 | . 93 141 26 Critical Strikes 5 | . 1 4 . Damage Taken 3012 | . 1024 1764 224 Core 480 | . 80 296 104 Absorbed by Shields . | . . . . Regen/Repaired (Parts) 170 | . 120 50 . Core Remaining (%) 84 | 100 68 . . Volleys Fired 144 | . 83 47 14 Largest 2 | . 2 2 1 Hottest 112 | . 85 112 23 Shots Fired 267 | . 165 88 14 Gun 246 | . 150 82 14 Cannon 20 | . 15 5 . Launcher . | . . . . Special 1 | . . 1 . Kinetic 183 | . 114 55 14 Thermal 84 | . 51 33 . Explosive . | . . . . Electromagnetic . | . . . . Robot Hit Streak 14 | . 11 14 2 Robot Miss Streak 6 | . 6 3 4 Penetration Max . | . . . . Secondary Targets 4 | . 2 2 . Max Gunslinging Chain 1 | . 1 1 . Shots Hit Robots 199 | . 100 87 12 Core Hits 61 | . 34 26 1 Critical Kills 1 | . . 1 . Critical Parts Destroyed 9 | . . 7 2 Critical Strikes 14 | . 1 11 2 Burn 3 | . 1 2 . Smash 11 | . . 9 2 Melee Attacks 34 | . . 27 7 Impact 34 | . . 27 7 Slashing . | . . . . Piercing . | . . . . Sneak Attacks 4 | . . 3 1 Combat Hostiles . | . . . . Follow-up Attacks . | . . . . Damage Inflicted 3667 | . 1405 1873 389 Guns 2193 | . 1192 928 73 Cannons 250 | . 209 41 . Explosions . | . . . . Melee 1166 | . . 850 316 Ramming 47 | . 4 43 . Kinetic 1484 | . 856 555 73 Thermal 970 | . 545 425 . Explosive . | . . . . Electromagnetic . | . . . . Impact 1166 | . . 850 316 Slashing . | . . . . Piercing . | . . . . Highest Corruption . | . . . . Average Corruption . | . . . . Corruption Purged . | . . . . Corruption Blocked . | . . . . Overload Shots . | . . . . Overflow Damage 469 | . . 363 106 Projectiles 6 | . . . 6 Explosions . | . . . . Melee 463 | . . 363 100 Knockbacks 4 | . . 1 3 Impact 3 | . . 1 2 Kinetic . | . . . . Secondary 1 | . . . 1 Self-Inflicted Damage 6 | . . 6 . Shots . | . . . . Rammed 8 | . . 8 . Targets Rammed 12 | . 1 11 . Kicked 4 | . 1 3 . Crushed . | . . . . Highest Temperature 290 | . 290 198 . Average Temperature 76 | . 89 50 . Received Heat Transfer 996 | . 495 474 27 Effects 1 | . 1 . . Energy Bleed 1 | . 1 . . Siege Activations . | . . . . Martial Activations . | . . . . Shielding Activations . | . . . . Robots Disrupted . | . . . . Combat Hostiles . | . . . . Robots Corrupted 7 | . . 4 3 Combat Hostiles 5 | . . 3 2 Parts Fried 8 | . . 6 2 Impact Corruptions 22 | . . 15 7 Robots Melted 1 | . . 1 . Combat Hostiles 1 | . . 1 . Parts Melted 4 | . 3 1 . Heat Transferred 2516 | . 1406 1110 . Parts Sabotaged . | . . . . Parts Stolen . | . . . . Parts Stripped . | . . . . Power Chain Reactions . | . . . . Alert | -11 -10 -9 -9 ------- Run | Yrd Mat Mat Sto Maximum Alert Level . | . . . . Low Security (%) 100 | 100 100 100 100 Level 1 . | . . . . Level 2 . | . . . . Level 3 . | . . . . Level 4 . | . . . . Level 5 . | . . . . High Security . | . . . . Max Security . | . . . . Peak Influence 131 | . 99 131 51 Initial 51 | . . 15 51 Average 43 | . 30 73 29 Influence Increases 1212 | . 538 594 80 Destroy 0b10 Robot/C 800 | . 400 360 40 Destroy 0b10 Robot/NC 50 | . 20 20 10 Destroy Leader 188 | . 86 102 . Successful Hack 66 | . 16 50 . Disable Machine 60 | . 15 45 . Destroy Structure 3 | . 1 2 . Lose Combat Pursuer 45 | . . 15 30 Influence Decreases 1202 | . 501 508 193 Entered New Map 94 | . . 22 72 Time Decay 977 | . 451 426 100 Lost Part 131 | . 50 60 21 Squads Dispatched 7 | . 5 1 1 Investigation 4 | . 4 . . Extermination . | . . . . Reinforcement 3 | . 1 1 1 Assault . | . . . . Garrison . | . . . . Intercept . | . . . . Searches Triggered . | . . . . Construction Impeded . | . . . . Haulers Reinforced . | . . . . Active Scanning Responses . | . . . . Cargo Convoy Interrupts . | . . . . Stealth | -11 -10 -9 -9 --------- Run | Yrd Mat Mat Sto Distress Signals 1 | . 1 . . Communications Jammed . | . . . . Distress Signals . | . . . . Times Spotted 57 | . 27 24 6 Peak Tracking Total 5 | . 5 5 3 Tactical Retreats 3 | . . 1 2 Traps | -11 -10 -9 -9 ------- Run | Yrd Mat Mat Sto Traps Triggered 4 | . 4 . . Indirectly . | . . . . Trap Hack Attempts . | . . . . Triggered . | . . . . Disarmed . | . . . . Reprogrammed . | . . . . Reused . | . . . . Traps Extracted . | . . . . Installed . | . . . . Triggered . | . . . . Machines | -11 -10 -9 -9 ---------- Run | Yrd Mat Mat Sto Machines Disabled 4 | . 1 3 . Max in Single Turn 1 | . 1 1 . Machines Repaired . | . . . . Machines Dismantled 2 | . . 2 . Machines Sabotaged . | . . . . Overloaded Fab Kills . | . . . . Hacking | -11 -10 -9 -9 --------- Run | Yrd Mat Mat Sto Machines Accessed 13 | . 7 5 1 Terminals 9 | . 5 4 . Fabricators . | . . . . Repair Stations 2 | . 1 1 . Recycling Units 1 | . 1 . . Scanalyzers . | . . . . Garrison Access 1 | . . . 1 Total Hacks 54 | . 24 28 2 Successful 35 | . 16 19 . Failed 19 | . 8 9 2 Catastrophic 3 | . 1 2 . Database Lockouts . | . . . . Manual . | . . . . Terminals 40 | . 15 25 . Fabricators . | . . . . Repair Stations 9 | . 6 3 . Recycling Units 3 | . 3 . . Scanalyzers . | . . . . Garrison Access 2 | . . . 2 Terminal Hacks 24 | . 8 16 . Record 11 | . 4 7 . Robot Analysis 1 | . 1 . . Prototype ID Bank 4 | . 2 2 . Emergency Access Points 1 | . . 1 . Alert Level 1 | . . 1 . Locate Traps 1 | . . 1 . Dispatch Records 1 | . . 1 . Maintenance Status 1 | . . 1 . Recall Reinforcements 1 | . 1 . . Registered Components 1 | . . 1 . Registered Prototypes 1 | . . 1 . Fabricator Hacks . | . . . . Repair Station Hacks 8 | . 5 3 . Scan Component 3 | . 2 1 . Repair 3 | . 2 1 . Refit 2 | . 1 1 . Recycling Unit Hacks 3 | . 3 . . Process 1 | . 1 . . Report Inventory 2 | . 2 . . Scanalyzer . | . . . . Garrison Access Hacks . | . . . . Unauthorized Hacks . | . . . . Terminals . | . . . . Fabricators . | . . . . Repair Stations . | . . . . Recycling Units . | . . . . Scanalyzers . | . . . . Garrison Access . | . . . . Data Cores Recovered . | . . . . Used . | . . . . Hacking Detections 10 | . 4 5 1 Full Trace Events 3 | . 2 1 . Feedback Events . | . . . . Feedback Blocked . | . . . . Robot Schematics Acquired . | . . . . Robots Built . | . . . . Authchips . | . . . . Time . | . . . . Total Robot Build Rating . | . . . . Part Schematics Acquired . | . . . . Parts Built . | . . . . Authchips . | . . . . Time . | . . . . Total Part Build Rating . | . . . . Parts Repaired 3 | . 2 1 . Time 90 | . 58 32 . Parts Recycled . | . . . . Recycled Matter 78 | . 78 . . Retrieved Matter . | . . . . Retrieved Components . | . . . . Parts Scanalyzed . | . . . . Part Schematics Acquired . | . . . . Parts Damaged . | . . . . Bothacking | -11 -10 -9 -9 ------------ Run | Yrd Mat Mat Sto Used RIF Installer . | . . . . Robots Hacked . | . . . . Non-combat . | . . . . Combat . | . . . . Robot Hacks Applied . | . . . . Relay Couplers Released . | . . . . Fabnet Peak Effective % . | . . . . Robots Rewired . | . . . . Allies Hacked . | . . . . Hacks Repelled . | . . . . Allies | -11 -10 -9 -9 -------- Run | Yrd Mat Mat Sto Total Allies . | . . . . Largest Group . | . . . . Highest-Rated Group . | . . . . Highest-Rated Ally . | . . . . Total Orders . | . . . . Ally Attacks . | . . . . Total Damage . | . . . . Kills . | . . . . Allies Corrupted . | . . . . Allies Melted . | . . . . Intel | -11 -10 -9 -9 ------- Run | Yrd Mat Mat Sto Active Infowar (turns) 2147 | . 1933 214 . Sensors 2147 | . 1933 214 . Robot Analysis Total 1 | . 1 . . Derelict Logs Recovered . | . . . . Drone Launches . | . . . . Drone Recoveries . | . . . . Exploration | -11 -10 -9 -9 ------------- Run | Yrd Mat Mat Sto Turns Passed 3797 | 115 2222 1251 209 Spaces Moved 1607 | 66 917 555 69 Core 18 | 6 1 . 11 Treads 455 | 60 297 98 . Legs 1048 | . 618 372 58 Wheels . | . . . . Hover 1 | . 1 . . Flight 85 | . . 85 . Fastest Speed 50 | 50 160 111 190 Average Speed 172 | 150 184 146 230 Slowest Speed 600 | 160 500 600 450 Overloaded Moves . | . . . . Propulsion Burnouts . | . . . . Robots Hopped . | . . . . Potential Cave-ins . | . . . . Cave-ins Triggered . | . . . . Exploration Rate (%) 42 | 5 98 50 16 Regions Visited 3 Branch Regions 1 Pre-discovered Areas . | . . . . Known Exits Taken . | . . . . Unknown Exits Taken 3 | 1 1 1 . Scrap Searched . | . . . . Spaces Dug . | . . . . Terrain Destroyed . | . . . . Melee . | . . . . Projectile . | . . . . AOE . | . . . . Terrain Rammed . | . . . . Walls Destroyed . | . . . . Machines Disabled . | . . . . Actions | -11 -10 -9 -9 --------- Run | Yrd Mat Mat Sto Total 2266 | 82 1282 810 92 Wait 308 | 1 207 100 . Move 1604 | 65 916 554 69 Hop . | . . . . Pick Up 66 | 10 34 21 1 Fast Attach 3 | . 3 . . Attach 25 | 6 6 12 1 Detach . | . . . . Swap 24 | . 12 12 . Drop 30 | . 20 10 . Fire 144 | . 83 47 14 Melee 34 | . . 27 7 Ram 8 | . . 8 . Kick 4 | . 1 3 . Crush . | . . . . Escape Stasis . | . . . . Rewire . | . . . . Trap . | . . . . Miscellaneous 16 | . . 16 . Route ------- -11/Scrapyard -10/Materials (discovered 6 exits: *Mat x3 / [*Min x2] / [*Sub]) -9/Materials (discovered 2 exits: [*Mat] / *Sto) -9/Storage History --------- Turn | Location | Event 33 | -11/Scrapyard | Discovered new exit (range 16) 116 | -11/Scrapyard | Entered Materials 300 | -10/Materials | Build established: Mutant 441 | -10/Materials | Discovered new exit (range 8) 539 | -10/Materials | Discovered new exit (range 15) 776 | -10/Materials | Repaired Particle Gun 802 | -10/Materials | Repaired Lgt. Treads 984 | -10/Materials | Discovered new exit (range 6) 1248 | -10/Materials | Discovered new exit (range 6) 1738 | -10/Materials | Discovered new exit (range 15) 2070 | -10/Materials | Discovered new exit (range 14) 2338 | -10/Materials | Entered another Materials area 2338 | -9/Materials | Evolved 2 slots: Propulsion x2 2629 | -9/Materials | Lost 9 parts (2p4n1u2w) 2819 | -9/Materials | Core integrity fell below 50% 3155 | -9/Materials | Repaired Imp. Ion Engine 3434 | -9/Materials | Discovered new exit (range 5) 3445 | -9/Materials | Discovered new exit (range 9) 3554 | -9/Materials | Lost 5 parts (1p3n1w) 3589 | -9/Materials | Entered Storage 3705 | -9/Storage | Core integrity fell below 20% 3798 | -9/Storage | Destroyed by Y-45 Defender with Beam Rifle Last Messages --------------- 03772_ R-06 Scavenger suffers critical hit (Smash). 03772_ Destroyed Com. Wheel. 03772_ Destroyed Tractor Beam. 03772_ R-06 Scavenger system corrupted by crushing effect. 03773_ R-06 Scavenger system terminally corrupted. 03773_ Com. Wheel fried. 03775_ Destroyed Lgt. Assault Rifle. 03775_ S-10 Pest system corrupted by crushing effect. 03778_ Acquired 43 matter. 03782_ O-16 Technician uses terminal to summon reinforcements. 03782_ ALERT: Hostiles spotted, dispatching reinforcements to Terminal S005. 03782_ O-16 Technician locks terminal. 03795_ Hvy. Assault Rifle destroyed. 03795_ Melee Analysis Suite destroyed. Map ----- +----------------------------------------------------+ | ######### #????????????????????????????????????? | | # #????????????????????????????????????? | | """ # #????????????????????????????????????? | | """ # #????????????????????????????????????? | | """ # #????????????????????????????????????? | | + +????????????????????????????????????? | | """ # #????????????????????????????????????? | | """ # #????????????????????????????????????? | | """ + #????????????????????????????????????? | | # #????????????????????????????????????? | | ##"Y"#### #????????????????????????????????????? | | ?#"""#??# #????????????????????????????????????? | | ?#####??# #????????????????????????????????????? | | ????????# #????????????????????????????????????? | | ????????# #????????????????????????????????????? | | ????????# ##+##+#??????????????????????????????? | | ????????# #??????????????????????????????? | | ????????# #??????????????????????????????? | | ????????# ##?????????????????????????????? | | ????????# +???????????????????????????? | | ?????#####+####### ###???????????????????????????? | | ?????# #?# #?????????????????????????????? | | ?????# #?# #?????????????????????????????? | | ?????# #?# #?????????????????????????????? | | ?????# #?# ######## ### o#??????????????? | | ?????# #?# !@% Y T ??????????? | | ?????# #?# ########### #??????????????? | | ?????# ### %#????????????????????????????? | | ?????# + #????????????????????????????? | | ?????############# #????????????????????????????? | | ?????????????????# #????????????????????????????? | | ?????????????????# #????????????????????????????? | | ?????????????????# #????????????????????????????? | | ?????????????????# #????????????????????????????? | | ?????????????????# +????????????????????????????? | | ?????????????????+ #????????????????????????????? | | ?????????????????# #????????????????????????????? | | ?????????????????# #????????????????????????????? | | ????????????????? #????????????????????????????? | | ????????????????? #????????????????????????????? | | ?????????????????+##?????????????????????????????? | | ?????????????????????????????????????????????????? | | ?????????????????????????????????????????????????? | | ?????????????????????????????????????????????????? | | ?????????????????????????????????????????????????? | | ?????????????????????????????????????????????????? | | ?????????????????????????????????????????????????? | | ?????????????????????????????????????????????????? | | ?????????????????????????????????????????????????? | | ?????????????????????????????????????????????????? | +----------------------------------------------------+ Best States ------------- Heat Dissipation 42 Energy Generation 12 Energy Capacity 265 Matter Stores 300 Matter Capacity 300 Sight Range 16 Robot Scan Range 14 Terrain Scan Density 10 Evasion (%) 55 Melee Accuracy 5 Recoil Reduction 2 Item Schematics ----------------- None Robot Schematics ------------------ None Fabricated ------------ Nothing Repaired ---------- Lgt. Treads | 14% | -10/Materials Imp. Ion Engine | 28% | -9/Materials Alien Tech Used ----------------- None Achievements -------------- It's Just You Challenges ------------ None Game ------ Seed PhysicsLauncherStick Manual? 0 Play Time 00:58:12 Cumulative 7.2 hours Start 2025.05.08 @ 12:05:03 End 2025.05.08 @ 14:07:40 Sessions 1 Manual Loads 0 Difficulty Rogue Special Mode None Game No. 6 Rogue 6 Adventurer 0 Explorer 0 Win Type - Total 0 Types 0/0/0/0/0/0/0/0/0/0 Lore% 7 Gallery% 12 Achievement% 14 Wizard Run 0 Options --------- Layout 1 ASCII 0 Keyboard 0 Movement Numpad Keybinds 0 Fullscreen 2 Font 32/SmallcapsGlow Map View 50x35 Zoom Use 0% Tactical HUD 1 Map Filters NONE Filters NONE Steam 1 RUN: c5e77d7b-89b6-49be-a2e5-f9ad23c0f35f